Workbook

Sheet NSU
B1: Aino-Kaisa Mantere | E1: 16.6.1994 Ilmajoki
B2: SUPERPESIS | E2: Runkosarja | I2: Kärkilyönnit (KL), pesänvälit | Q2: Runkosarja | U2: Ylempi loppusarja | AB2: Ylempi loppusarja | AG2: Play off, voitot, voittoprosentti | AN2: Arvo-ottelut ja mitalit
B3: Vuosi | C3: Sija | D3: Seura | E3: OTT | F3: KUN | G3: LÖI | H3: TOI | I3: KL | J3: 0 > 1 | K3: 1 > 2 | L3: 2 > 3 | M3: 3 > k | N3: KL-% | P3: LÖI | Q3: TOI | R3: L+T | S3: KL | U3: OTT | V3: KUN | W3: LÖI | X3: TOI | Y3: KL | Z3: KL-% | AB3: LÖI | AC3: TOI | AD3: L+T | AE3: KL | AG3: Puolivälierät | AH3: Välierät | AI3: Pronssi | AJ3: Finaalit | AL3: IL | AM3: LL | AN3: hSM | AO3: K | AP3: H | AQ3: P
B4: 2011 | C4: 3. | D4: SMJ | F4: ykköspesis
B5: 2012 | C5: 1. | D5: SMJ | F5: suomensarja
B6: 2013 | C6: 3. | D6: SMJ 2 | F6: suomensarja
B7: 2013 | C7: 2. | D7: SMJ | F7: ykköspesis
B8: 2014 | C8: 9. | D8: Kirittäret 2 | F8: ykköspesis
B9: 2014 | C9: 2. | D9: Kirittäret | E9: 24 | F9: 0 | G9: 25 | H9: 4 | I9: 72 | J9: 10 | K9: 6 | L9: 31 | M9: 25 | N9: 44.4 % | O9: 162 | U9: 11 | V9: 0 | W9: 8 | X9: 1 | Y9: 27 | Z9: 47.4 % | AB9: 9. | AG9: 3-0 Räpsä | AH9: 3-0 KeKi | AJ9: 2-3 Virkiä | AP9: 1
B10: 2015 | C10: 2. | D10: Kirittäret 2 | F10: ykköspesis
B11: 2015 | C11: 2. | D11: Kirittäret | E11: 20 | F11: 0 | G11: 24 | H11: 4 | I11: 75 | J11: 6 | K11: 9 | L11: 36 | M11: 24 | N11: 51.4 % | O11: 146 | U11: 12 | V11: 1 | W11: 24 | X11: 4 | Y11: 57 | Z11: 51.8 % | AB11: 2. | AD11: 1. | AE11: 4. | AG11: 3-1 Räpsä | AH11: 3-1 Pesäkarhut | AJ11: 1-3 Virkiä | AN11: 1 | AP11: 1
B12: 2016 | C12: 1. | D12: Kirittäret | E12: 22 | F12: 5 | G12: 58 | H12: 10 | I12: 109 | J12: 0 | K12: 3 | L12: 43 | M12: 63 | N12: 52.2 % | O12: 209 | P12: 3. | R12: 4. | S12: 8. | U12: 10 | V12: 0 | W12: 27 | X12: 2 | Y12: 50 | Z12: 50.0 % | AB12: 2. | AD12: 4. | AE12: 5. | AG12: 3-0 Pesä Ysit | AH12: 3-0 Pesäkarhut | AJ12: 3-1 Virkiä | AL12: 1 | AN12: 1 | AO12: 1
B13: 2017 | C13: 2. | D13: Pesäkarhut | E13: 26 | F13: 2 | G13: 45 | H13: 7 | I13: 122 | J13: 17 | K13: 11 | L13: 47 | M13: 47 | N13: 58.4 % | O13: 209 | P13: 4. | R13: 9. | U13: 12 | V13: 0 | W13: 19 | X13: 2 | Y13: 48 | Z13: 52.8 % | AB13: 3. | AD13: 4. | AE13: 9. | AG13: 3-0 Fera | AH13: 3-2 Virkiä | AJ13: 1-3 Manse PP | AL13: 1 | AM13: 1 | AN13: 1 | AP13: 1
B14: 2018 | C14: 5. | D14: SMJ | E14: 26 | F14: 2 | G14: 45 | H14: 8 | I14: 113 | J14: 2 | K14: 14 | L14: 50 | M14: 47 | N14: 54.6 % | O14: 207 | P14: 9. | R14: 9. | U14: 3 | V14: 0 | W14: 5 | X14: 0 | Y14: 13 | Z14: 61.9 % | AG14: 0-3 Virkiä
B15: 2019 | C15: 5. | D15: SMJ | E15: 24 | F15: 2 | G15: 70 | H15: 7 | I15: 119 | J15: 4 | K15: 8 | L15: 35 | M15: 72 | N15: 55.9 % | O15: 213 | P15: 3. | R15: 4. | S15: 8. | U15: 4 | V15: 0 | W15: 9 | X15: 0 | Y15: 19 | Z15: 45.2 % | AB15: 9. | AG15: 1-3 Manse PP
B16: 2020 | C16: 6. | D16: SMJ | E16: 20 | F16: 1 | G16: 37 | H16: 2 | I16: 80 | J16: 2 | K16: 6 | L16: 34 | M16: 38 | N16: 49.4 % | O16: 162 | P16: 9. | U16: 3 | V16: 1 | W16: 4 | X16: 2 | Y16: 10 | Z16: 47.6 % | AG16: 1-2 Pesäkarhut
B17: 2021 | C17: 5. | D17: SMJ | E17: 24 | F17: 2 | G17: 49 | H17: 5 | I17: 83 | J17: 3 | K17: 5 | L17: 24 | M17: 51 | N17: 47.7 % | O17: 174 | P17: 7. | R17: 10. | U17: 4 | V17: 0 | W17: 8 | X17: 0 | Y17: 13 | Z17: 48.2 % | AG17: 1-3 Manse PP
B18: 2022 | C18: 5. | D18: SMJ | E18: 24 | F18: 0 | G18: 56 | H18: 3 | I18: 92 | J18: 3 | K18: 7 | L18: 26 | M18: 56 | N18: 46.9 % | O18: 196 | P18: 4. | R18: 9. | U18: 4 | V18: 4 | W18: 21 | X18: 4 | Y18: 38 | Z18: 71.7 % | AB18: 4. | AD18: 7. | AG18: 1-3 Virkiä
B19: 2023 | C19: 4. | D19: SMJ | E19: 24 | F19: 0 | G19: 62 | H19: 2 | I19: 91 | J19: 2 | K19: 3 | L19: 24 | M19: 62 | N19: 56.2 % | O19: 162 | P19: 1. | R19: 3. | U19: 10 | V19: 2 | W19: 35 | X19: 5 | Y19: 64 | Z19: 67.4 % | AB19: 1. | AD19: 2. | AE19: 4. | AG19: 3-2 JoMa | AH19: 0-3 Pesäkarhut | AI19: 0-2 Virkiä | AL19: 1
B20: 2024 | C20: 3. | D20: SMJ | E20: 24 | F20: 2 | G20: 64 | H20: 3 | I20: 108 | J20: 2 | K20: 5 | L20: 35 | M20: 66 | N20: 49.8 % | O20: 217 | P20: 1. | R20: 2. | S20: 9. | U20: 9 | V20: 1 | W20: 26 | X20: 1 | Y20: 49 | Z20: 55.7 % | AB20: 2. | AD20: 3. | AE20: 7. | AG20: 3-1 JoMa | AH20: 0-3 Virkiä | AI20: 2-0 Kirittäret | AL20: 1 | AQ20: 1
B21: Yhteensä | E21: =SUM(E4:E20) -> 258 | F21: =SUM(F4:F20) -> 16 | G21: 535 | H21: 55 | I21: 1064 | J21: 51 | K21: 77 | L21: 385 | M21: 551 | N21: =PRODUCT(I21/O21) -> 51.7 % | O21: =SUM(O4:O20) -> 2057 | P21: 2-0-2 | Q21: 0-0-0 | R21: 0-1-1 | S21: 0-0-0 | U21: 82 | V21: 9 | W21: 186 | X21: 21 | Y21: 388 | Z21: 55.0 % | AA21: =SUM(#REF!) ->  | AB21: 1-3-1 | AC21: 0-0-0 | AD21: 1-1-1 | AE21: 0-0-0 | AG21: 6/11 55% | AH21: 4/6 67% | AI21: 1/2 50% | AJ21: 1/4 25% | AL21: 4 | AM21: 1 | AN21: 3 | AO21: 1 | AP21: 3 | AQ21: 1
B22: Pesispörssi | D22: =SUM(F21:H21)+((I21-F21-G21)/3)+(E21/3)+(AL21*25)+(AM21*25)+(AN21*10)+(AO21*25)+(AP21*20)+(AQ21*15) -> 1118.0
B24: URA SUPERISSA | E24: OTT | F24: KUN | G24: LÖI | H24: TOI | I24: KL | K24: ka/L | L24: ka/T | M24: ka/KL | N24: K - % | P24: ENSIMMÄISET RUNKOSARJASSA
B25: Runkosarja | E25: =PRODUCT(E21) -> 258 | F25: =PRODUCT(F21) -> 16 | G25: =PRODUCT(G21) -> 535 | H25: =PRODUCT(H21) -> 55 | I25: =PRODUCT(I21) -> 1064 | K25: =PRODUCT((F25+G25)/E25) -> 2.14 | L25: =PRODUCT(H25/E25) -> 0.21 | M25: =PRODUCT(I25/E25) -> 4.12 | N25: =PRODUCT(N21) -> 51.7 % | O25: =PRODUCT(O21) -> 2057 | P25: Ottelu | R25: 14.05. 2014 VuVe - Kirittäret 0-2 (2-6, 2-8) | AB25: 1. ottelu | AE25: 19 v 10 kk 28 pv
B26: Ylempi loppusarja | E26: =SUM(U21) -> 82 | F26: =SUM(V21) -> 9 | G26: =SUM(W21) -> 186 | H26: =SUM(X21) -> 21 | I26: =SUM(Y21) -> 388 | K26: =PRODUCT((F26+G26)/E26) -> 2.38 | L26: =PRODUCT(H26/E26) -> 0.26 | M26: =PRODUCT(I26/E26) -> 4.73 | N26: =PRODUCT(I26/O26) -> 55.0 % | O26: 705 | P26: Lyöty | R26: 14.05. 2014 VuVe - Kirittäret 0-2 (2-6, 2-8) | AB26: 1. ottelu | AE26: 19 v 10 kk 28 pv
B27: Alempi loppusarja | E27: 4 | F27: 0 | G27: 1 | H27: 0 | I27: 10 | K27: =PRODUCT((F27+G27)/E27) -> 0.25 | L27: =PRODUCT(H27/E27) -> 0.00 | M27: =PRODUCT(I27/E27) -> 2.50 | N27: =PRODUCT(I27/O27) -> 38.5 % | O27: 26 | P27: Tuotu | R27: 25.05. 2014 ViPa - Kirittäret 0-2 (0-9, 1-8) | AB27: 4. ottelu | AE27: 19 v 11 kk 9 pv
B28: KAIKKI | E28: =SUM(E25:E27) -> 344 | F28: =SUM(F25:F27) -> 25 | G28: =SUM(G25:G27) -> 722 | H28: =SUM(H25:H27) -> 76 | I28: =SUM(I25:I27) -> 1462 | K28: =PRODUCT((F28+G28)/E28) -> 2.17 | L28: =PRODUCT(H28/E28) -> 0.22 | M28: =PRODUCT(I28/E28) -> 4.25 | N28: =PRODUCT(I28/O28) -> 52.4 % | O28: =SUM(O25:O27) -> 2788 | P28: Kunnari | R28: 17.07. 2016 Kirittäret - Fera 2-0 (12-0, 1-0) | AB28: 59. ottelu | AE28: 22 v 1 kk 1 pv
B30: Kultainen maila 2023 <> Vuoden jokeri 2023, 2024
B32: Seurat | D32: IK = Ilmajoen Kisailijat (1921), kasvattajaseura | L32: SMJ = Seinäjoen Maila-Jussit (1932) | U32: Kirittäret = Jyväskylän Kirittäret (2004) | AD32: Pesäkarhut (1985)

Sheet Arvo-ottelut
B1: ITÄ - LÄNSI - KORTTI
B2: Aino-Kaisa Mantere | C2: 16.6.1994 Ilmajoki
B3: NAISET | C3: Itä - Länsi, tulos | D3: Joukkue | E3: Seura | G3: V | H3: T | I3: H | J3: Up. | K3: Lj. | L3: Palk. | M3: O | N3: K | O3: L | P3: T | Q3: KL | R3: 1 | S3: 2 | T3: 3 | U3: k | V3: KL-% | W3: Pelinjohtaja | X3: Yleisöä
B4: 02.07. 2016 Kouvola | C4: 0-2 (2-10, 1-7) | D4: Itä | E4: Kirittäret | I4: 1 | K4: jok | M4: 1 | Q4: 0/5 | U4: 0/5 | V4: 0.0 % | W4: Saku Komulainen | X4: 3267
B5: 01.07. 2017 Imatra | C5: 0-1 (2-2, 3-7) | D5: Länsi | E5: Pesäkarhut | G5: 1 | J5: 3v | K5: 8 | M5: 1 | O5: 1 | Q5: 3/6 | R5: 1/2 | S5: 0/1 | T5: 1/2 | U5: 1/1 | V5: 50.0 % | W5: Jarkko Pokela | X5: 3171
B6: 05.08. 2023 Sotkamo | C6: 0-2 (4-9, 1-5) | D6: Länsi | E6: SMJ | G6: 1 | K6: jok | L6: A | M6: 1 | O6: 4 | Q6: 7/9 | S6: 1/1 | T6: 2/2 | U6: 4/6 | V6: =PRODUCT(7/9) -> 77.8 % | W6: Jarkko Pokela | X6: 2780
B7: 29.06. 2024 Jyväskylä | C7: 2-1 (5-4, 2-6, 0-0, 2-1) | D7: Länsi | E7: SMJ | I7: 1 | K7: jok | L7: II p | M7: 1 | O7: 4 | Q7: 6/8 | T7: 2/2 | U7: 4/6 | V7: 75.0 % | W7: Juha Antikainen | X7: 3293
B8: Yhteensä | G8: =SUM(G4:G7) -> 2 | I8: =SUM(I4:I7) -> 2 | M8: =SUM(M4:M7) -> 4 | O8: =SUM(O4:O7) -> 9 | Q8: 16/28 | R8: 1/2 | S8: 1/2 | T8: 5/6 | U8: 9/18 | V8: =PRODUCT(16/28) -> 57.1 %
B9: Ikä ensimmäisessä ottelussa | C9: 22 v 0 kk 16 pv
B11: B-TYTÖT | C11: Itä - Länsi, tulos | D11: Joukkue | E11: Seura | G11: V | H11: T | I11: H | J11: Up. | K11: Lj. | L11: Palk. | M11: O | N11: K | O11: L | P11: T | Q11: KL | R11: 1 | S11: 2 | T11: 3 | U11: k | V11: KL-% | W11: Pelinjohtaja | X11: Yleisöä
B12: 13.07. 2013 Hyvinkää | C12: 0-2 (0-1, 1-3) | D12: Länsi | E12: SMJ | G12: 1 | J12: 2p | K12: 8 | M12: 1 | Q12: 1/4 | R12: 1/2 | S12: 0/1 | T12: 0/1 | V12: 25.0 % | W12: Keijo Kitinoja | X12: 1013
B14: LIITTO - LEHDISTÖ - KORTTI
B15: NAISET | C15: Tulos | D15: Joukkue | E15: Seura | G15: V | H15: T | I15: H | J15: Up. | K15: Lj. | L15: Palk. | M15: O | N15: K | O15: L | P15: T | Q15: KL | R15: 1 | S15: 2 | T15: 3 | U15: k | V15: KL-% | W15: Pelinjohtaja | X15: Yleisöä
B16: 20.06. 2017 Lapua | C16: 0-1 (1-4, 2-2) | D16: Lehdistö | E16: Pesäkarhut | G16: 1 | K16: jok | M16: 1 | O16: 2 | Q16: 3/8 | T16: 1/3 | U16: 2/5 | V16: 37.5 % | W16: Sami Österlund | X16: 804
B17: Ikä ensimmäisessä ottelussa | C17: 23 v 0 kk 4 pv
